{"text_format":"1","workbook":"xlsx","n_sheets":3,"sheets":["стандарт","ануітет","Номінальна %ставка"],"not_rendered":{"charts":0,"images":4,"macros":1,"external_links":0,"defined_names":0,"comments":0,"pivot_tables":0},"unopened":[],"bounds":{"document_bytes":16777216,"sheet_cells":100000,"rows_first":2000,"rows_last":500,"rows_between":2000,"halvings":0,"cell_chars":16384,"cell_head_chars":4096},"cells_cut":0,"cells_raw":0,"read":"whole","date_system":"1900"}

{"sheet":"стандарт","index":0,"n_rows":110,"n_cols":25,"rows_kept":110,"cut":false,"hidden":false,"merged":[[112,1,112,17],[37,2,38,2],[37,3,38,3],[110,1,110,22],[37,20,38,20],[37,1,38,1],[109,1,109,17],[111,1,111,17],[106,1,106,8],[37,21,38,21],[37,4,38,4],[37,14,38,14],[37,15,38,15],[37,17,38,17],[37,19,38,19],[37,12,38,12],[117,1,117,22],[114,1,114,22],[115,1,115,22],[116,1,116,22],[113,1,113,17],[104,1,104,8],[30,19,30,21],[33,21,36,21],[33,20,36,20],[33,3,33,19],[35,5,35,9],[34,5,34,19],[35,10,35,17],[8,1,8,2],[14,0,15,0],[33,0,36,0],[15,1,15,2],[13,1,13,2],[12,1,12,2],[11,1,11,2],[33,1,36,1],[33,2,36,2],[10,1,10,2],[14,1,14,2],[22,1,22,2],[107,1,107,17],[108,1,108,17],[14,11,14,13],[37,5,38,5],[37,6,38,6],[37,8,38,8],[37,9,38,9],[37,10,38,10],[37,11,38,11],[34,4,36,4],[34,3,36,3],[27,4,27,5],[102,1,102,8],[103,1,103,8],[105,1,105,8],[37,13,38,13]]}
[null,null,null,null,null,"до 165 ПМ",{"$f":"H4*165","v":316965},0.03]
[null,null,null,null,null,"від 165 до 290 ПМ",{"$f":"H4*290","v":557090},0.04]
[null,null,null,null,null,"більше 290 ПМ",null,0.05]
[null,null,null,"КАЛЬКУЛЯТОР",null,null,null,1921]
[null,null,null,"Обрані Споживачем умови кредитування"]
[]
[null,"Кредит видається на:",null,"НОВІ АВТО"]
[null,"Дата надання кредиту",null,{"$f":"TODAY()","v":"2024-01-02"}]
[null,"Сума кредиту,грн.: ",null,240000,"гривень"]
[null,"Забезпечення",null,300000,"гривень",null,null,null,null,null,null,null,"Заповнюється Клієнтом"]
[null,"Строк користування кредитом (в місяцях): ",null,60]
[null,"Погашення основної суми кредиту: щомісяця"]
[null,"Погашення процентів: щомісяця"]
[{"$f":"ROUND(D9/D11,2)","v":4000},"Номінальна процентна ставка: ",null,{"$f":"VLOOKUP(D15,'Номінальна %ставка'!$A$2:$F$7,MATCH(стандарт!$D$11,'Номінальна %ставка'!$A$2:$F$2,0),0)","v":0.11990000000000001},"річних",{"$f":"D14","v":0.11990000000000001},null,null,{"$f":"F14/12","v":9.9916666666666678E-3}]
[null,"Авансовий внесок",null,0.6,null,{"$f":"D10*D15","v":180000},"гривень"]
[null,"Супутні витрати позичальника:"]
[{"$f":"DATE(YEAR(B40),MONTH(B40)+1,DAY(B40))","v":"2024-02-02"},"комісія за надання кредиту (разова): ",null,2.5000000000000001E-2," від основної суми кредиту/ Всього:",null,{"$f":"D17*D9","v":6000},null,"гривень"]
[null,"обслуговування кредитної заборгованості: ",null,0,"на місяць від основної суми кредиту:",null,{"$f":"D18*D9","v":0},null,"гривень"]
[null,"розрахунково-касове обслуговування:  ",null,null,null,null,0,null,"гривень"]
[null,"страхування НВ:",null,0,"на рік від основної суми кредиту:",null,{"$f":"D20*D9","v":0},null,"гривень"]
[null,"страхування КАСКО:",null,6.4899999999999999E-2,"на рік від залогової вартості:",null,{"$f":"D10*D21","v":19470},null,"гривень"]
[null,"послуги нотаріуса: ",null,null,null,null,0,null,"гривень"]
[null,"надання витягів/внесення запису(ів) до Державного реєстру обтяжень рухомого майна",null,null,"фіксована сума (одноразово)",null,0,null,"гривень"]
[null,"інші послуги третіх осіб",null,null,"фіксована сума (одноразово)",null,1500,null,"гривень"]
[null,"інші послуги банку",null,null,null,null,600,null,"гривень"]
[null,"Збір до Пенсійного фонду",null,{"$f":"IF(D10<G1,H1,IF(AND(D10>=G1,D10<=G2),H2,IF(D10>G2,H3)))","v":0.03},"від суми кредиту (одноразово)",null,{"$f":"(D10/1.2)*D26","v":7500},null,"гривень"]
[null,"оцінка майна:",null,null,"фіксована сума (одноразово)",null,0,null,"гривень"]
[null,"інша плата за послуги кредитного посередника",null,null,null,null,0,null,"гривень"]
[null,"ВСЬОГО",null,null,null,null,{"$f":"SUM(G17:G28)","v":35070},null,"гривень"]
[]
[null,null,null,null,null,{"$f":"PMT(F14/12,E11,-D9)","v":{"$error":"#NUM!"}},{"$f":"IPMT(F14/12,1,24,-D9)","v":2398}]
[null,null,null,"Розрахунок загальної вартості споживчого кредиту та реальної процентної ставки"]
[]
[null,"Дата видачі кредиту/дата платежу","Чиста сума кредиту/сума платежу за розрахунковий період, грн.","Види платежів за кредитом",null,null,null,null,null,null,null,null,null,null,null,null,null,null,null,null,"Орієнтовна реальна річна процентна ставка, % ","пепеплата"]
[null,null,null,"сума кредиту за договором","проценти за користування кредитом","платежі за супровідні послуги"]
[null,null,null,null,null,"банку",null,null,null,null,"третіх осіб",null,null,null,null,null,null,null,null,"кредитного посередника(за наявності)"]
[null,null,null,null,null,"обслуговування кредитної заборгованості","РКО","розрахунково-касове обслуговування","комісія за надання кредиту","інші послуги банку ","страхування НВ","послугами нотаріусів ","страхування КАСКО","оцінка майна","надання витягів/внесення запису(ів) до Державного реєстру обтяжень рухомого майна","інші послуги третіх осіб",null,"Збір до Пенсійного фонду",null,"інша плата за послуги кредитного посередника"]
[null,1,2,3,4,5,6,null,7,8,9,10,11,12,13,14,null,15,null,16,17,18]
[null,null,null,null,null,null,null,null,null,null,null,null,null,null,null,null,null,null,null,null,null,null,"остаток"]
["e",{"$f":"D8","v":"2024-01-02"},{"$f":"-(D40-SUM(F40:T40))","v":-204930},{"$f":"D9","v":240000},"х",{"$f":"$G$18","v":0},{"$f":"G19","v":0},null,{"$f":"G17","v":6000},{"$f":"G25","v":600},{"$f":"IF(X40=\"страховка\",$G$20,0)","v":0},{"$f":"G22","v":0},{"$f":"IF(X40=\"страховка\",$G$21,0)","v":19470},{"$f":"G27","v":0},{"$f":"G23","v":0},{"$f":"G24","v":1500},null,{"$f":"G26","v":7500},null,{"$f":"G28","v":0},"х","х",240000,{"$f":"IF(MONTH($B$40)-MONTH(B40)=0,\"страховка\",\"нет\")","v":"страховка"}]
["e",{"$f":"DATE(YEAR(B40),MONTH(B40)+1,DAY(B40))","v":"2024-02-02"},{"$f":"SUM(D41:V41)","v":6477.9333333333334},{"$f":"$A$14","v":4000},{"$f":"W40*$D$14/360*Y41","v":2477.9333333333334},0,null,null,null,null,{"$f":"IF(X41=\"страховка\",$G$20,0)","v":0},null,{"$f":"IF(X41=\"страховка\",$G$21,0)","v":0},null,null,null,null,null,null,null,null,null,{"$f":"W40-D41","v":236000},{"$f":"IF(MONTH($B$40)-MONTH(B41)=0,\"страховка\",\"нет\")","v":"нет"},{"$f":"B41-B40","v":31}]
["e",{"$f":"DATE(YEAR(B41),MONTH(B41)+1,DAY(B41))","v":"2024-03-02"},{"$f":"SUM(D42:V42)","v":6279.4322222222218},{"$f":"$A$14","v":4000},{"$f":"W41*$D$14/360*Y42","v":2279.4322222222222},0,null,null,null,null,0,null,0,null,null,null,null,null,null,null,null,null,{"$f":"W41-D42","v":232000},"нет",{"$f":"B42-B41","v":29}]
["e","2024-04-02",6395.3355555555554,4000,2395.3355555555559,0,null,null,null,null,0,null,0,null,null,null,null,null,null,null,null,null,228000,"нет",31]
["e","2024-05-02",6278.1,4000,2278.1,0,null,null,null,null,0,null,0,null,null,null,null,null,null,null,null,null,224000,"нет",30]
["e","2024-06-02",6312.7377777777783,4000,2312.7377777777779,0,null,null,null,null,0,null,0,null,null,null,null,null,null,null,null,null,220000,"нет",31]
["e","2024-07-02",6198.166666666667,4000,2198.166666666667,0,null,null,null,null,0,null,0,null,null,null,null,null,null,null,null,null,216000,"нет",30]
["e","2024-08-02",6230.1399999999994,4000,2230.14,0,null,null,null,null,0,null,0,null,null,null,null,null,null,null,null,null,212000,"нет",31]
["e","2024-09-02",6188.8411111111109,4000,2188.8411111111113,0,null,null,null,null,0,null,0,null,null,null,null,null,null,null,null,null,208000,"нет",31]
["e","2024-10-02",6078.2666666666664,4000,2078.2666666666669,0,null,null,null,null,0,null,0,null,null,null,null,null,null,null,null,null,204000,"нет",30]
["e","2024-11-02",6106.2433333333338,4000,2106.2433333333338,0,null,null,null,null,0,null,0,null,null,null,null,null,null,null,null,null,200000,"нет",31]
["e","2024-12-02",5998.3333333333339,4000,1998.3333333333335,0,null,null,null,null,0,null,0,null,null,null,null,null,null,null,null,null,196000,"нет",30]
["e","2025-01-02",25493.645555555555,4000,2023.6455555555556,0,null,null,null,null,0,null,19470,null,null,null,null,null,null,null,null,null,192000,"страховка",31]
["e","2025-02-02",5982.3466666666664,4000,1982.3466666666668,0,null,null,null,null,0,null,0,null,null,null,null,null,null,null,null,null,188000,"нет",31]
["e","2025-03-02",5753.2044444444446,4000,1753.2044444444446,0,null,null,null,null,0,null,0,null,null,null,null,null,null,null,null,null,184000,"нет",28]
["e","2025-04-02",5899.7488888888893,4000,1899.7488888888893,0,null,null,null,null,0,null,0,null,null,null,null,null,null,null,null,null,180000,"нет",31]
["e","2025-05-02",5798.5,4000,1798.5,0,null,null,null,null,0,null,0,null,null,null,null,null,null,null,null,null,176000,"нет",30]
["e","2025-06-02",5817.1511111111113,4000,1817.1511111111113,0,null,null,null,null,0,null,0,null,null,null,null,null,null,null,null,null,172000,"нет",31]
["e","2025-07-02",5718.5666666666666,4000,1718.5666666666668,0,null,null,null,null,0,null,0,null,null,null,null,null,null,null,null,null,168000,"нет",30]
["e","2025-08-02",5734.5533333333333,4000,1734.5533333333333,0,null,null,null,null,0,null,0,null,null,null,null,null,null,null,null,null,164000,"нет",31]
["e","2025-09-02",5693.2544444444447,4000,1693.2544444444447,0,null,null,null,null,0,null,0,null,null,null,null,null,null,null,null,null,160000,"нет",31]
["e","2025-10-02",5598.666666666667,4000,1598.6666666666667,0,null,null,null,null,0,null,0,null,null,null,null,null,null,null,null,null,156000,"нет",30]
["e","2025-11-02",5610.6566666666668,4000,1610.6566666666668,0,null,null,null,null,0,null,0,null,null,null,null,null,null,null,null,null,152000,"нет",31]
["e","2025-12-02",5518.7333333333336,4000,1518.7333333333333,0,null,null,null,null,0,null,0,null,null,null,null,null,null,null,null,null,148000,"нет",30]
["e","2026-01-02",24998.058888888889,4000,1528.0588888888888,0,null,null,null,null,0,null,19470,null,null,null,null,null,null,null,null,null,144000,"страховка",31]
["e","2026-02-02",5486.76,4000,1486.7600000000002,0,null,null,null,null,0,null,0,null,null,null,null,null,null,null,null,null,140000,"нет",31]
["e","2026-03-02",5305.5777777777776,4000,1305.5777777777778,0,null,null,null,null,0,null,0,null,null,null,null,null,null,null,null,null,136000,"нет",28]
["e","2026-04-02",5404.1622222222222,4000,1404.1622222222222,0,null,null,null,null,0,null,0,null,null,null,null,null,null,null,null,null,132000,"нет",31]
["e","2026-05-02",5318.9,4000,1318.9,0,null,null,null,null,0,null,0,null,null,null,null,null,null,null,null,null,128000,"нет",30]
["e","2026-06-02",5321.5644444444442,4000,1321.5644444444445,0,null,null,null,null,0,null,0,null,null,null,null,null,null,null,null,null,124000,"нет",31]
["e","2026-07-02",5238.9666666666672,4000,1238.9666666666667,0,null,null,null,null,0,null,0,null,null,null,null,null,null,null,null,null,120000,"нет",30]
["e","2026-08-02",5238.9666666666672,4000,1238.9666666666667,0,null,null,null,null,0,null,0,null,null,null,null,null,null,null,null,null,116000,"нет",31]
["e","2026-09-02",5197.6677777777777,4000,1197.6677777777779,0,null,null,null,null,0,null,0,null,null,null,null,null,null,null,null,null,112000,"нет",31]
["e","2026-10-02",5119.0666666666666,4000,1119.0666666666668,0,null,null,null,null,0,null,0,null,null,null,null,null,null,null,null,null,108000,"нет",30]
["e","2026-11-02",5115.07,4000,1115.07,0,null,null,null,null,0,null,0,null,null,null,null,null,null,null,null,null,104000,"нет",31]
["e","2026-12-02",5039.1333333333332,4000,1039.1333333333334,0,null,null,null,null,0,null,0,null,null,null,null,null,null,null,null,null,100000,"нет",30]
["e","2027-01-02",24502.472222222223,4000,1032.4722222222222,0,null,null,null,null,0,null,19470,null,null,null,null,null,null,null,null,null,96000,"страховка",31]
["e","2027-02-02",4991.1733333333332,4000,991.1733333333334,0,null,null,null,null,0,null,0,null,null,null,null,null,null,null,null,null,92000,"нет",31]
["e","2027-03-02",4857.9511111111115,4000,857.95111111111123,0,null,null,null,null,0,null,0,null,null,null,null,null,null,null,null,null,88000,"нет",28]
["e","2027-04-02",4908.5755555555552,4000,908.57555555555564,0,null,null,null,null,0,null,0,null,null,null,null,null,null,null,null,null,84000,"нет",31]
["e","2027-05-02",4839.3,4000,839.3,0,null,null,null,null,0,null,0,null,null,null,null,null,null,null,null,null,80000,"нет",30]
["e","2027-06-02",4825.9777777777781,4000,825.97777777777787,0,null,null,null,null,0,null,0,null,null,null,null,null,null,null,null,null,76000,"нет",31]
["e","2027-07-02",4759.3666666666668,4000,759.36666666666667,0,null,null,null,null,0,null,0,null,null,null,null,null,null,null,null,null,72000,"нет",30]
["e","2027-08-02",4743.38,4000,743.38000000000011,0,null,null,null,null,0,null,0,null,null,null,null,null,null,null,null,null,68000,"нет",31]
["e","2027-09-02",4702.0811111111107,4000,702.08111111111111,0,null,null,null,null,0,null,0,null,null,null,null,null,null,null,null,null,64000,"нет",31]
["e","2027-10-02",4639.4666666666672,4000,639.4666666666667,0,null,null,null,null,0,null,0,null,null,null,null,null,null,null,null,null,60000,"нет",30]
["e","2027-11-02",4619.4833333333336,4000,619.48333333333335,0,null,null,null,null,0,null,0,null,null,null,null,null,null,null,null,null,56000,"нет",31]
["e","2027-12-02",4559.5333333333338,4000,559.53333333333342,0,null,null,null,null,0,null,0,null,null,null,null,null,null,null,null,null,52000,"нет",30]
["e","2028-01-02",24006.885555555556,4000,536.88555555555558,0,null,null,null,null,0,null,19470,null,null,null,null,null,null,null,null,null,48000,"страховка",31]
["e","2028-02-02",4495.586666666667,4000,495.5866666666667,0,null,null,null,null,0,null,0,null,null,null,null,null,null,null,null,null,44000,"нет",31]
["e","2028-03-02",4424.9788888888888,4000,424.97888888888895,0,null,null,null,null,0,null,0,null,null,null,null,null,null,null,null,null,40000,"нет",29]
["e","2028-04-02",4412.9888888888891,4000,412.98888888888894,0,null,null,null,null,0,null,0,null,null,null,null,null,null,null,null,null,36000,"нет",31]
["e","2028-05-02",4359.7,4000,359.70000000000005,0,null,null,null,null,0,null,0,null,null,null,null,null,null,null,null,null,32000,"нет",30]
["e","2028-06-02",4330.3911111111111,4000,330.39111111111112,0,null,null,null,null,0,null,0,null,null,null,null,null,null,null,null,null,28000,"нет",31]
["e","2028-07-02",4279.7666666666664,4000,279.76666666666671,0,null,null,null,null,0,null,0,null,null,null,null,null,null,null,null,null,24000,"нет",30]
["e","2028-08-02",4247.7933333333331,4000,247.79333333333335,0,null,null,null,null,0,null,0,null,null,null,null,null,null,null,null,null,20000,"нет",31]
["e","2028-09-02",4206.4944444444445,4000,206.49444444444447,0,null,null,null,null,0,null,0,null,null,null,null,null,null,null,null,null,16000,"нет",31]
["e","2028-10-02",4159.8666666666668,4000,159.86666666666667,0,null,null,null,null,0,null,0,null,null,null,null,null,null,null,null,null,12000,"нет",30]
["e","2028-11-02",4123.8966666666665,4000,123.89666666666668,0,null,null,null,null,0,null,0,null,null,null,null,null,null,null,null,null,8000,"нет",31]
["e","2028-12-02",4079.9333333333334,4000,79.933333333333337,0,null,null,null,null,0,null,0,null,null,null,null,null,null,null,null,null,4000,"нет",30]
["e","2029-01-02",4041.298888888889,4000,41.298888888888889,0,null,null,null,null,null,null,null,null,null,null,null,null,null,null,null,null,0,null,31]
[null,"Усього",392108.75777777779,240000,74228.757777777762,0,0,0,6000,600,0,0,97350,0,0,1500,0,7500,0,0,{"$f":"XIRR(C40:C100,B40:B100)","v":0.36267116665840149},187178.75777777773]
[]
[null,"Загальні витрати за кредитом( проценти за користування кредитом, комісії та інші обовязкові платежі за супровідні послуги кредитодавця, кредитного посередника (за наявності) та третіх осіб, повязані з отриманням, обслуговуванням та поверненням кредиту), грн з них:",null,null,null,null,null,null,null,{"$f":"V101","v":187178.75777777773}]
[null," - Платежі за супровідні послуги кредитодавця, повязані з отриманням, обслуговуванням та поверненням кредиту), грн",null,null,null,null,null,null,null,{"$f":"E101+F101+G101+I101+J101","v":80828.757777777762}]
[null," - Платежі за супровідні послуги третіх осіб, повязані з отриманням, обслуговуванням та поверненням кредиту), грн",null,null,null,null,null,null,null,{"$f":"K101+L101+M101+N101+O101+P101+R101+T101","v":106350}]
[null,"Орієнтовна загальна вартість кредиту для споживача за весь строк користування кредитом ( у т.ч. тіло кредиту, відсотки, комісії та інші платежі), грн.",null,null,null,null,null,null,null,{"$f":"J103+D9","v":427178.75777777773}]
[null,"Орієнтовна реальна річна процентна ставка, % річних",null,null,null,null,null,null,null,{"$f":"U101","v":0.36267116665840149}]
[null,"Застереження: Розрахунок загальної вартості Кредиту і реальної процентної ставки носить інформативний характер для Позичальника  і визначено станом на дату укладання Кредитного договору. При здійсненні розрахунку загальної вартості Кредиту і реальної процентної ставки Кредитор враховував вартість супутніх послуг третіх осіб, послуги кредитного посередник ( за наявності). В розрахунок загальної  вартості Кредиту і реальної процентної ставки не включались умовні платежі Позичальника  по Договору (пені, штрафи,  які встановлюються згідно з Договором).\n"]
[null," Наведені обчислення реальної річної процентної ставки та орієнтовної загальної вартості кредиту для споживача є репрезентативними та базуються на обраних споживачем умовах кредитування, викладених вище, і на припущенні, що договір про споживчий кредит залишатиметься дійсним протягом погодженого строку, а кредитодавець і споживач виконають свої обов’язки на умовах  та у строки, визначені в договорі.Реальна річна процентна ставка обчислена на основі припущення, що процентна ставка та інші платежі за послуги кредитодавця залишатимуться незмінними та застосовуватимуться протягом строку дії договору про споживчий кредит. Застереження: використання інших способів надання кредиту та/або зміна інших вищезазначених умов кредитування можуть мати наслідком застосування іншої реальної річної процентної ставки та орієнтовної загальної вартості кредиту для споживача.  Орієнтовна реальна річна процентна ставка обчислена з використанням фінансової функції ЧИСТВНДОХ програмного продукту Microsoft Excel."]
[null,"Позичальник не сплачує Кредитору комісійних винагород за розрахунково-касове обслуговування, що пов‘язані з погашенням Кредиту та процентів за ним Позичальником у готівковій чи безготівковій формі через установи Кредитора. У випадку погашення Позичальником Кредиту та процентів за ним не через установи Кредитора Позичальник буде сплачувати послуги інших банків згідно з тарифами, які діятимуть в таких банках на момент здійснення розрахунково-касового обслуговування Позичальника."]

{"sheet":"ануітет","index":1,"n_rows":62,"n_cols":28,"rows_kept":62,"cut":false,"hidden":false,"merged":[[10,1,10,2],[8,1,8,2],[14,0,15,0],[11,1,11,2],[13,1,13,2],[12,1,12,2],[14,1,14,2],[33,0,36,0],[15,1,15,2],[27,4,27,5],[37,11,38,11],[37,12,38,12],[37,9,38,9],[35,10,35,17],[37,1,38,1],[37,2,38,2],[37,3,38,3],[33,3,33,19],[35,5,35,9],[34,5,34,19],[34,4,36,4],[37,4,38,4],[33,1,36,1],[69,1,69,22],[67,1,67,22],[68,1,68,22],[58,1,58,8],[59,1,59,17],[60,1,60,17],[66,1,66,17],[61,1,61,17],[63,1,63,17],[65,1,65,22],[62,1,62,22],[30,19,30,21],[34,3,36,3],[37,20,38,20],[54,1,54,8],[56,1,56,8],[55,1,55,8],[37,19,38,19],[37,10,38,10],[37,14,38,14],[37,15,38,15],[33,21,36,21],[33,20,36,20],[37,21,38,21],[33,2,36,2],[14,10,14,13],[64,1,64,17],[37,17,38,17],[22,1,22,2],[37,5,38,5],[37,6,38,6],[37,8,38,8],[37,13,38,13],[57,1,57,8]]}
[null,null,null,null,null,"до 165 ПМ",499620,0.03]
[null,null,null,null,null,"від 165 до 290 ПМ",878120,0.04]
[null,null,null,null,null,"більше 290 ПМ",null,0.05]
[null,null,null,"КАЛЬКУЛЯТОР",null,null,null,1921]
[null,null,null,"Обрані Споживачем умови кредитування"]
[]
[null,"Кредит видається на:"]
[null,"Дата надання кредиту",null,{"$f":"TODAY()","v":"2024-01-02"},null,null,null,null,null,null,null,"Заповнюється Клієнтом"]
[null,"Сума кредиту,грн.: ",null,2500000,"гривень"]
[null,"Забезпечення",null,6250000,"гривень",{"$f":"D10/1.2","v":5208333.333333334}]
[null,"Строк користування кредитом (в місяцях): ",null,12]
[null,"Погашення основної суми кредиту: щомісяця"]
[null,"Погашення процентів: щомісяця"]
[{"$f":"ROUND(D9/D11,2)","v":208333.33},"Номінальна процентна ставка: ",null,{"$f":"VLOOKUP(D15,'Номінальна %ставка'!$A$2:$F$7,MATCH(D11,'Номінальна %ставка'!$A$2:$F$2,0),0)","v":6.9900000000000004E-2},"річних",{"$f":"D14","v":6.9900000000000004E-2},null,null,{"$f":"F14/12","v":5.8250000000000003E-3}]
[null,"Авансовий внесок",null,0.6,null,{"$f":"D10*D15","v":3750000},"гривень"]
[null,"Супутні витрати позичальника:"]
[{"$f":"DATE(YEAR(B40),MONTH(B40)+1,DAY(B40))","v":"2024-02-02"},"комісія за надання кредиту (разова): ",null,2.5000000000000001E-2," від основної суми кредиту. Всього:",null,{"$f":"D17*D9","v":62500},null,"гривень"]
[null,"обслуговування кредитної заборгованості: ",null,0,"на місяць від основної суми кредиту:",null,{"$f":"D18*D9","v":0},null,"гривень"]
[null,"розрахунково-касове обслуговування:  ",null,null,null,null,0,null,"гривень"]
[null,"страхування НВ:",null,0,"на рік від основної суми кредиту:",null,{"$f":"D20*D9","v":0},null,"гривень"]
[null,"страхування КАСКО:",null,6.4899999999999999E-2,"на рік від залогової вартості:",null,{"$f":"D10*D21","v":405625},null,"гривень"]
[null,"послуги нотаріуса: ",null,null,null,null,0,null,"гривень"]
[null,"надання витягів/внесення запису(ів) до Державного реєстру обтяжень рухомого майна",null,null,"фіксована сума (одноразово)",null,0,null,"гривень"]
[null,"інші послуги третіх осіб",null,null,null,null,1500,null,"гривень"]
[null,"інші послуги банку",null,null,null,null,600,null,"гривень"]
[null,"Збір до Пенсійного фонду",null,{"$f":"IF(F10<G1,H1,IF(AND(F10>=G1,F10<=G2),H2,IF(F10>G2,H3)))","v":0.05},"від суми кредиту (одноразово)",null,{"$f":"(D10/1.2)*D26","v":260416.66666666672},null,"гривень"]
[null,"оцінка майна:",null,null,"фіксована сума (одноразово)",null,0,null,"гривень"]
[null,"інша плата за послуги кредитного посередника",null,null,null,null,0,null,"гривень"]
[null,"ВСЬОГО",null,null,null,null,{"$f":"SUM(G17:G28)","v":730641.66666666674},null,"гривень"]
[]
[null,null,null,null,null,{"$f":"PMT(F14/12,E11,-D9)","v":{"$error":"#NUM!"}},{"$f":"IPMT(F14/12,1,24,-D9)","v":14562.5}]
[null,null,null,"Розрахунок загальної вартості споживчого кредиту та реальної процентної ставки"]
[]
[null,"Дата видачі кредиту/дата платежу","Чиста сума кредиту/сума платежу за розрахунковий період, грн.","Види платежів за кредитом",null,null,null,null,null,null,null,null,null,null,null,null,null,null,null,null,"Реальна процентна ставка, % ","Абсолютне значення подорожчання кредиту, грн."]
[null,null,null,"сума кредиту за договором","проценти за користування кредитом","платежі за супровідні послуги"]
[null,null,null,null,null," банку",null,null,null,null," третіх осіб",null,null,null,null,null,null,null,null,"кредитного посередника(за наявності)"]
[null,null,null,null,null,"обслуговування кредитної заборгованості","РКО",null,"комісія за надання кредиту","інші послуги банку ","страхуванням НВ","послугами нотаріусів","страхування КАСКО:","оцінка майна","надання витягів/внесення запису(ів) до Державного реєстру обтяжень рухомого майна","інші послуги третіх осіб",null,"Збір до Пенсійного фонду",null,"інша плата за послуги кредитного посередника"]
[null,1,2,3,4,5,6,null,7,8,9,10,11,12,13,14,null,15,null,16,17,18]
[null,null,null,null,null,null,null,null,null,null,null,null,null,null,null,null,null,null,null,null,null,null,"остаток",null,null,"ан платеж"]
["e",{"$f":"D8","v":"2024-01-02"},{"$f":"-(D40-SUM(F40:T40))","v":-1769358.3333333333},{"$f":"D9","v":2500000},"х",{"$f":"$G$18","v":0},{"$f":"G19","v":0},null,{"$f":"G17","v":62500},{"$f":"G25","v":600},{"$f":"IF(X40=\"страховка\",$G$20,0)","v":0},{"$f":"G22","v":0},{"$f":"IF(X40=\"страховка\",$G$21,0)","v":405625},{"$f":"G27","v":0},{"$f":"G23","v":0},{"$f":"G24","v":1500},null,{"$f":"G26","v":260416.66666666672},null,{"$f":"G28","v":0},"х","х",2500000,{"$f":"IF(MONTH($B$40)-MONTH(B40)=0,\"страховка\",\"нет\")","v":"страховка"},null,null,null,{"$f":"(D9*D14/12)/(1-(1/(1+D14/12)^D11))","v":216305.34041607985}]
["e",{"$f":"DATE(YEAR(B40),MONTH(B40)+1,DAY(B40))","v":"2024-02-02"},{"$f":"SUM(D41:V41)","v":216305.34041607633},{"$f":"Z41-E41","v":201742.84041607633},{"$f":"W40*$D$14/12","v":14562.5},{"$f":"$G$18","v":0},null,null,null,null,{"$f":"IF(X41=\"страховка\",$G$20,0)","v":0},null,{"$f":"IF(X41=\"страховка\",$G$21,0)","v":0},null,null,null,null,null,null,null,null,null,{"$f":"W40-D41","v":2298257.1595839239},{"$f":"IF(MONTH($B$40)-MONTH(B41)=0,\"страховка\",\"нет\")","v":"нет"},{"$f":"B41-B40","v":31},{"$f":"PMT($D$14/12,$D$11,-$D$9)","v":216305.34041607633}]
["e",{"$f":"DATE(YEAR(B41),MONTH(B41)+1,DAY(B41))","v":"2024-03-02"},{"$f":"SUM(D42:V42)","v":216305.34041607633},{"$f":"Z42-E42","v":202917.99246149996},{"$f":"W41*$D$14/12","v":13387.347954576357},0,null,null,null,null,0,null,0,null,null,null,null,null,null,null,null,null,{"$f":"W41-D42","v":2095339.1671224239},"нет",{"$f":"B42-B41","v":29},{"$f":"PMT($D$14/12,$D$11,-$D$9)","v":216305.34041607633}]
["e","2024-04-02",216305.34041607633,204099.98976758821,12205.35064848812,0,null,null,null,null,0,null,0,null,null,null,null,null,null,null,null,null,1891239.1773548357,"нет",31,216305.34041607633]
["e","2024-05-02",216305.34041607633,205288.87220798442,11016.468208091917,0,null,null,null,null,0,null,0,null,null,null,null,null,null,null,null,null,1685950.3051468513,"нет",30,216305.34041607633]
["e","2024-06-02",216305.34041607633,206484.67988859591,9820.6605274804097,0,null,null,null,null,0,null,0,null,null,null,null,null,null,null,null,null,1479465.6252582555,"нет",31,216305.34041607633]
["e","2024-07-02",216305.34041607633,207687.45314894698,8617.8872671293393,0,null,null,null,null,0,null,0,null,null,null,null,null,null,null,null,null,1271778.1721093087,"нет",30,216305.34041607633]
["e","2024-08-02",216305.34041607633,208897.23256353961,7408.1078525367229,0,null,null,null,null,0,null,0,null,null,null,null,null,null,null,null,null,1062880.939545769,"нет",31,216305.34041607633]
["e","2024-09-02",216305.34041607633,210114.05894322222,6191.2814728541052,0,null,null,null,null,0,null,0,null,null,null,null,null,null,null,null,null,852766.88060254673,"нет",31,216305.34041607633]
["e","2024-10-02",216305.34041607633,211337.9733365665,4967.3670795098351,0,null,null,null,null,0,null,0,null,null,null,null,null,null,null,null,null,641428.90726598026,"нет",30,216305.34041607633]
["e","2024-11-02",216305.34041607633,212569.01703125201,3736.3233848243349,0,null,null,null,null,0,null,0,null,null,null,null,null,null,null,null,null,428859.89023472823,"нет",31,216305.34041607633]
["e","2024-12-02",216305.34041607633,213807.23155545903,2498.1088606172921,0,null,null,null,null,0,null,0,null,null,null,null,null,null,null,null,null,215052.6586792692,"нет",30,216305.34041607633]
["e","2025-01-02",216305.34041607633,215052.65867926957,1252.6817368067432,0,null,null,null,null,null,null,null,null,null,null,null,null,null,null,null,null,-3.7834979593753815E-10,null,31,216305.34041607633]
[null,"Усього",2595664.0849929154,2500000.0000000009,95664.084992915174,0,0,0,62500,600,0,0,405625,0,0,1500,0,260416.66666666672,0,0,{"$f":"XIRR(C40:C52,B40:B52)","v":1.1171720147132873},826305.75165958283]
[]
[null,"Загальні витрати за кредитом( проценти за користування кредитом, комісії та інші обовязкові платежі за супровідні послуги кредитодавця, кредитного посередника (за наявності) та третіх осіб, повязані з отриманням, обслуговуванням та поверненням кредиту), грн з них:",null,null,null,null,null,null,null,{"$f":"V53","v":826305.75165958283}]
[null," - Платежі за супровідні послуги кредитодавця, повязані з отриманням, обслуговуванням та поверненням кредиту), грн",null,null,null,null,null,null,null,{"$f":"E53+F53+G53+I53+J53","v":158764.08499291516}]
[null," - Платежі за супровідні послуги третіх осіб, повязані з отриманням, обслуговуванням та поверненням кредиту), грн",null,null,null,null,null,null,null,{"$f":"K53+L53+M53+N53+O53+P53+R53+T53","v":667541.66666666674}]
[null,"Орієнтовна загальна вартість кредиту для споживача за весь строк користування кредитом ( у т.ч. тіло кредиту, відсотки, комісії та інші платежі), грн.",null,null,null,null,null,null,null,{"$f":"J55+D9","v":3326305.7516595828}]
[null,"Орієнтовна реальна річна процентна ставка, % річних",null,null,null,null,null,null,null,{"$f":"U53","v":1.1171720147132873}]
[null,"Застереження: Розрахунок загальної вартості Кредиту і реальної процентної ставки носить інформативний характер для Позичальника  і визначено станом на дату укладання Кредитного договору. При здійсненні розрахунку загальної вартості Кредиту і реальної процентної ставки Кредитор враховував вартість супутніх послуг третіх осіб, послуги кредитного посередник ( за наявності). В розрахунок загальної  вартості Кредиту і реальної процентної ставки не включались умовні платежі Позичальника  по Договору (пені, штрафи,  які встановлюються згідно з Договором)."]
[null,"Наведені обчислення реальної річної процентної ставки та орієнтовної загальної вартості кредиту для споживача є репрезентативними та базуються на обраних споживачем умовах кредитування, викладених вище, і на припущенні, що договір про споживчий кредит залишатиметься дійсним протягом погодженого строку, а кредитодавець і споживач виконають свої обов’язки на умовах  та у строки, визначені в договорі.Реальна річна процентна ставка обчислена на основі припущення, що процентна ставка та інші платежі за послуги кредитодавця залишатимуться незмінними та застосовуватимуться протягом строку дії договору про споживчий кредит. Застереження: використання інших способів надання кредиту та/або зміна інших вищезазначених умов кредитування можуть мати наслідком застосування іншої реальної річної процентної ставки та орієнтовної загальної вартості кредиту для споживача.  Орієнтовна реальна річна процентна ставка обчислена з використанням фінансової функції ЧИСТВНДОХ програмного продукту Microsoft Excel."]
[null,"Позичальник не сплачує Кредитору комісійних винагород за розрахунково-касове обслуговування, що пов‘язані з погашенням Кредиту та процентів за ним Позичальником у готівковій чи безготівковій формі через установи Кредитора. У випадку погашення Позичальником Кредиту та процентів за ним не через установи Кредитора Позичальник буде сплачувати послуги інших банків згідно з тарифами, які діятимуть в таких банках на момент здійснення розрахунково-касового обслуговування Позичальника."]

{"sheet":"Номінальна %ставка","index":2,"n_rows":16,"n_cols":6,"rows_kept":16,"cut":false,"hidden":true,"merged":[]}
[null,"Строк кредиту, міс."]
["Авансовий внесок",12,24,36,48,60]
[0.2,0.14990000000000001,0.15989999999999999,0.1699,0.1799,0.18990000000000001]
[0.3,0.1399,0.14990000000000001,0.15989999999999999,0.1699,0.1799]
[0.4,0.11990000000000001,0.1399,0.14990000000000001,0.15989999999999999,0.1699]
[0.5,9.9900000000000003E-2,0.11990000000000001,0.12989999999999999,0.1399,0.14990000000000001]
[0.6,6.9900000000000004E-2,8.9899999999999994E-2,9.9900000000000003E-2,0.1099,0.11990000000000001]
[]
[]
[]
[null,0.2,0.3,0.4,0.5,0.6]
[12,0.14990000000000001,0.1399,0.11990000000000001,9.9900000000000003E-2,6.9900000000000004E-2]
[24,0.15989999999999999,0.14990000000000001,0.1399,0.11990000000000001,8.9899999999999994E-2]
[36,0.1699,0.15989999999999999,0.14990000000000001,0.12989999999999999,9.9900000000000003E-2]
[48,0.1799,0.1699,0.15989999999999999,0.1399,0.1099]
[60,0.18990000000000001,0.1799,0.1699,0.14990000000000001,0.11990000000000001]